bitfinex-derivatives/quotes_ETHF0:USTF0_20251211
["timestamp","ask_amount","ask_price","bid_price","bid_amount"]
[1765461426499,1.41850182,3190.4,3190.3,1.4513]
[1765461427599,1.4138,3190.3,3190.2,0.15673]
[1765461428297,1.4138,3190.3,3190.2,0.86373]
[1765461428694,1.4138,3190.3,3190.2,0.15673]
[1765461429199,10.3938,3190.3,3190.2,0.15673]
[1765461429400,10.3938,3190.3,3190.2,0.86373]
[1765461429599,11.54511529,3190.3,3190.2,0.15673]
[1765461429797,0.412,3192.5,3190.3,6.0]
[1765461430095,0.412,3192.5,3192.4,1.30793529]
[1765461430301,1.8258,3192.5,3192.4,0.15662]
[1765461430496,1.8258,3192.5,3192.4,3.36442]
[1765461430700,1.8258,3192.5,3192.4,0.15662]
[1765461430895,1.82802114,3192.5,3192.4,0.15911709]
[1765461441309,1.4659,3192.3,3192.2,3.2078]
[1765461441809,1.4659,3192.2,3192.1,0.16133182]
[1765461442509,1.4659,3192.2,3192.1,0.16425771]
[1765461445611,1.4659,3192.2,3192.1,0.00292589]
[1765461446209,1.4659,3191.9,3191.8,3.2078]
[1765461446606,1.4659,3191.8,3191.7,0.15665]
[1765461447305,9.5529,3191.8,3191.7,0.15951356]
[1765461449313,9.5529,3191.8,3191.7,1.356e-05]
[1765461449508,1.4659,3191.8,3191.7,1.356e-05]
[1765461449710,13.8759,3191.8,3191.7,1.356e-05]
[1765461450309,13.8749,3191.8,3191.7,1.356e-05]
[1765461450613,1.4659,3191.8,3191.7,0.15666356]
[1765461451105,7.5569,3191.8,3191.7,0.15666356]
[1765461451418,13.8749,3191.8,3191.7,0.15666356]
[1765461454714,15.02679921,3191.8,3191.7,0.15666356]
[1765461455213,15.02579921,3191.8,3191.7,0.15666356]
[1765461455514,1.4659,3191.6,3191.5,0.00470182]
[1765461455713,5.82559921,3191.6,3191.5,0.00470182]
[1765461456509,5.82559921,3191.6,3191.5,0.00842099]
[1765461459318,18.23259921,3191.6,3191.5,0.00842099]
[1765461463027,5.82559921,3191.6,3191.5,0.00842099]
[1765461463220,18.22759921,3191.6,3191.5,0.00842099]
[1765461464722,2.1091,3191.5,3191.4,0.15667]
[1765461465725,2.1091,3191.5,3191.4,0.16005817]
[1765461469730,14.5081,3191.5,3191.4,0.16005817]
[1765461470523,14.5081,3191.5,3190.9,3.2078]
[1765461470524,2.1091,3191.0,3190.9,0.6503]
[1765461470730,3.26099921,3191.0,3190.9,0.15669]
[1765461471227,1.6174,3190.3,3190.2,0.80702]
[1765461471630,1.6174,3190.3,3190.2,0.80932614]
[1765461471934,1.6174,3190.3,3190.2,0.15902614]
[1765461472436,1.6174,3190.3,3190.2,0.81842614]
[1765461475530,1.6174,3190.3,3190.2,0.15902614]
[1765461487657,0.83000182,3190.6,3190.5,1.0764]
[1765461487949,0.00470182,3190.6,3190.5,1.23311]
[1765461488150,1.62210182,3190.6,3190.5,1.23311]
[1765461489044,1.62210182,3190.6,3190.5,0.15671]
[1765461489244,4.82990182,3190.6,3190.5,0.15671]
[1765461493751,4.82990182,3190.6,3190.5,0.67141]
[1765461493950,4.82990182,3190.6,3190.5,0.15671]
[1765461495958,1.62210182,3190.6,3190.5,0.63281]
[1765461497162,0.83000182,3190.6,3190.5,1.10121]
[1765461497558,1.58590182,3190.6,3190.5,1.10121]
[1765461497762,0.83000182,3190.6,3190.5,1.10121]
[1765461497963,1.58590182,3190.6,3190.5,1.10121]
[1765461498762,0.00470182,3190.6,3190.5,1.10121]
[1765461499164,0.70480182,3190.6,3190.5,1.10121]
[1765461499356,1.46070182,3190.6,3190.5,1.10121]
[1765461501359,0.00470182,3190.6,3190.5,1.10121]
[1765461501565,0.00470182,3190.6,3190.5,5.43288818]
[1765461502868,5.133e-05,3190.6,3190.5,5.43288818]
[1765461506566,1.45605133,3190.6,3190.5,4.30901]
[1765461506865,1.45605133,3190.6,3190.5,4.23151]
[1765461507465,0.70015133,3190.6,3190.5,4.23151]
[1765461508063,5.133e-05,3190.6,3190.5,4.23151]
[1765461508763,0.70015133,3190.6,3190.5,4.23151]
[1765461509166,1.45605133,3190.6,3190.5,4.23151]
[1765461510257,0.70015133,3190.6,3190.5,4.23151]
[1765461510672,1.45605133,3190.6,3190.5,4.23151]
[1765461511365,0.70015133,3190.6,3190.5,4.23151]
[1765461511566,5.133e-05,3190.6,3190.5,4.23151]
[1765461511762,5.133e-05,3190.6,3190.5,3.79801]
[1765461515073,0.70015133,3190.6,3190.5,4.23151]
[1765461515367,1.45605133,3190.6,3190.5,4.23151]
[1765461516067,0.70015133,3190.6,3190.5,4.23151]
[1765461516264,5.133e-05,3190.6,3190.5,3.79801]
[1765461516469,5.133e-05,3190.6,3190.5,3.36451]
[1765461517474,1.9477,3191.0,3190.9,0.59019]
[1765461517671,1.9477,3191.0,3190.9,0.15669]
[1765461525184,1.9477,3191.0,3190.5,3.2078]
[1765461525185,1.4432,3190.6,3190.5,3.36451]
[1765461528075,1.4432,3190.6,3190.5,0.15671]
[1765461536285,13.8242,3190.6,3190.5,0.15671]
[1765461536784,14.9768395,3190.6,3190.5,0.15671]
[1765461537580,2.5958395,3190.6,3190.5,0.15671]
[1765461537888,10.4378395,3190.6,3190.5,0.15671]
[1765461538584,1.4432,3190.6,3190.5,0.15671]
[1765461538780,14.9768395,3190.6,3190.5,0.15671]
[1765461540789,13.8242,3190.6,3190.5,0.15671]
[1765461540988,14.9768395,3190.6,3190.5,0.15671]
[1765461541283,2.5958395,3190.6,3190.5,0.15671]
[1765461541490,10.4368395,3190.6,3190.5,0.15671]
[1765461543887,13.6446395,3190.6,3190.5,0.15671]
[1765461547190,5.8036395,3190.6,3190.5,0.74731]
[1765461547394,18.1846395,3190.6,3190.5,0.74731]
[1765461548089,5.8036395,3190.6,3190.5,0.74731]
[1765461548392,18.1846395,3190.6,3190.5,0.74731]
[1765461548891,18.1846395,3190.6,3190.5,0.15671]
[1765461552189,17.032,3190.6,3190.5,0.15671]
[1765461552390,17.032,3190.6,3190.5,0.74731]
[1765461553697,17.032,3190.6,3190.5,0.74681]
[1765461554194,17.032,3190.6,3190.5,0.15671]
[1765461554695,1.4432,3190.6,3190.5,1.33691]
[1765461556396,0.712,3190.6,3190.5,1.33691]
[1765461557304,1.4206,3190.9,3190.8,0.7468]
[1765461557598,0.729,3190.9,3190.8,1.3369]
[1765461557801,1.4206,3190.9,3190.8,1.3369]
[1765461559197,1.4206,3190.9,3190.8,0.7468]
[1765461560414,1.4206,3190.9,3190.8,1.3369]
[1765461560705,1.4206,3190.9,3190.8,0.7468]
[1765461561606,1.4206,3190.9,3190.8,1.3369]
[1765461566904,1.4206,3190.9,3190.8,0.7468]
[1765461568314,1.4206,3190.9,3190.8,1.3369]
[1765461569312,1.4206,3190.9,3190.8,0.7468]
[1765461572508,1.4206,3190.9,3190.8,0.1567]
[1765461574106,1.4206,3190.9,3190.8,0.7468]
[1765461574313,0.729,3190.9,3190.8,1.3369]
[1765461574514,1.4206,3190.9,3190.8,1.3369]
[1765461576712,1.4206,3190.9,3190.8,0.7468]
[1765461577017,1.4206,3190.9,3190.8,0.1567]
[1765461577216,1.4206,3190.9,3190.8,0.7468]
[1765461577418,1.4206,3190.9,3190.8,1.3369]
[1765461577819,1.4206,3190.9,3190.8,0.7468]
[1765461578418,1.4206,3190.9,3190.8,1.3369]
[1765461580416,1.4206,3190.9,3190.8,0.1567]
[1765461590115,2.5732395,3190.9,3190.8,0.1567]
[1765461592521,0.00470182,3191.3,3190.7,1.1526395]
[1765461592720,1.46380182,3191.3,3191.2,0.15668]
[1765461593718,1.46380182,3191.3,3191.2,0.74798]
[1765461599727,1.46380182,3191.3,3191.2,1.33928]
[1765461600627,0.00470182,3191.3,3191.2,1.33928]
[1765461600932,1.46380182,3191.3,3191.2,1.33928]
[1765461602231,1.46380182,3191.3,3191.2,0.15668]
[1765461605027,1.46380182,3191.3,3191.2,1.33928]
[1765461606231,1.46380182,3191.3,3191.2,0.74798]
[1765461606834,1.46380182,3191.3,3191.2,0.15668]
[1765461610433,2.58683138,3191.3,3191.2,0.15668]
[1765461611237,1.46380182,3191.3,3191.2,0.15668]
[1765461612133,1.46380182,3191.3,3191.2,0.74798]
[1765461612330,1.46380182,3191.3,3191.2,1.33928]
[1765461613337,1.46380182,3191.3,3191.2,0.74798]
[1765461613538,2.58683138,3191.3,3191.2,0.15668]
[1765461615128,1.46380182,3191.3,3191.2,0.74738]
[1765461615337,1.47130182,3191.3,3191.2,0.74738]
[1765461615933,1.47130182,3191.3,3191.2,1.33808]
[1765461618535,0.00470182,3191.3,3191.2,1.33808]
[1765461619345,5.205e-05,3191.3,3191.2,1.33808]
[1765461622142,5.205e-05,3191.3,3191.2,0.15668]
[1765461623846,1.46665205,3191.3,3191.2,0.74738]
[1765461624045,1.46665205,3191.3,3191.2,1.33808]
[1765461626046,1.46665205,3191.3,3191.2,0.15668]
[1765461626249,1.46665205,3191.3,3191.2,0.74738]
[1765461626548,1.46665205,3191.3,3191.2,1.33808]
[1765461629247,1.46665205,3191.3,3191.2,0.15668]
[1765461629943,1.46665205,3191.3,3191.2,0.74738]
[1765461630446,1.46665205,3191.3,3191.2,0.15668]
[1765461631452,1.46665205,3191.3,3191.2,0.74738]
[1765461634053,0.71785205,3191.3,3191.2,1.33808]
[1765461634554,1.46665205,3191.3,3191.2,0.74738]
[1765461637656,1.46665205,3191.3,3191.2,1.33808]
[1765461638254,1.46665205,3191.3,3191.2,0.74738]
[1765461641160,1.46665205,3191.3,3191.2,0.15668]
[1765461656570,1.46665205,3191.3,3191.2,0.74768]
[1765461657168,1.46665205,3191.3,3191.2,0.15668]
[1765461657565,1.46665205,3191.3,3191.2,1.33868]
[1765461657973,1.46665205,3191.3,3191.2,0.74768]
[1765461658175,1.46665205,3191.3,3191.2,0.15668]
[1765461658377,1.46665205,3191.3,3191.2,0.74768]
[1765461658876,1.46665205,3191.3,3191.2,0.15668]
[1765461665787,1.8724,3191.0,3190.9,0.15669]
[1765461665992,3.31225313,3191.0,3190.9,0.15669]
[1765461667392,1.8724,3191.0,3190.9,0.88829]
[1765461667582,1.1217,3191.0,3190.9,3.04044313]
[1765461667995,0.4329,3191.0,3190.9,3.04044313]
[1765461668191,3.31225313,3191.0,3190.9,0.15669]
[1765461668695,3.31225313,3191.0,3190.9,0.88829]
[1765461670689,3.31225313,3191.0,3190.9,0.15669]
[1765461674400,3.31225313,3191.0,3190.5,3.2078]
[1765461674401,1.418,3190.6,3190.5,3.2078]
[1765461674597,2.85785313,3190.6,3190.5,3.36451]
[1765461676195,2.85785313,3190.6,3190.5,4.11061]
[1765461676495,1.418,3190.6,3190.5,4.11061]
[1765461677094,1.418,3190.6,3190.5,3.36451]
[1765461677599,2.85785313,3190.6,3190.5,3.36451]
[1765461678798,2.85785313,3190.6,3190.5,0.15671]
[1765461686605,1.418,3190.3,3190.2,0.00695664]
[1765461686800,2.85785313,3190.3,3190.2,0.00695664]
[1765461687600,2.85785313,3190.3,3190.2,0.16368664]
[1765461688506,6.06565313,3190.3,3190.2,0.16368664]
[1765461693103,4.6258,3190.3,3190.2,1.63078664]
[1765461693309,6.06565313,3190.3,3190.2,0.16368664]
[1765461697210,2.85785313,3190.3,3190.2,0.16368664]
[1765461697399,6.06565313,3190.3,3190.2,0.16368664]
[1765461702912,6.71465313,3190.3,3190.2,0.16368664]
[1765461706606,5.2748,3190.3,3190.2,0.16368664]
[1765461706803,6.71465313,3190.3,3190.2,0.16368664]
[1765461707003,6.71465313,3190.3,3190.2,1.54538664]
[1765461707207,6.71465313,3190.3,3190.2,0.85978664]
[1765461707503,4.5616,3190.3,3190.2,1.54538664]
[1765461707703,0.649,3190.3,3190.2,2.98523977]
[1765461707908,3.2078,3190.7,3190.6,1.53841]
[1765461708309,1.1581,3191.0,3190.9,1.53839]
[1765461708516,1.871,3191.0,3190.9,1.53839]
[1765461708916,1.1581,3191.0,3190.9,1.53839]
[1765461709516,1.871,3191.0,3190.9,1.53839]
[1765461710715,1.1581,3191.0,3190.9,1.53839]
[1765461712216,0.4329,3191.0,3190.9,1.53839]
[1765461712915,1.1581,3191.0,3190.9,1.53839]
[1765461713413,1.871,3191.0,3190.9,0.85279]
[1765461713616,1.871,3191.0,3190.9,0.15669]
[1765461715817,0.4329,3191.0,3190.9,1.53839]
[1765461716017,1.43815205,3191.3,3191.2,0.15668]
[1765461716222,2.87800518,3191.3,3191.2,0.15668]
[1765461718026,1.43815205,3191.3,3191.2,1.53838]
[1765461718526,2.87800518,3191.3,3191.2,0.85278]
[1765461718824,1.43815205,3191.3,3191.2,0.15668]
[1765461720135,1.43815205,3191.3,3191.2,0.85278]
[1765461720626,1.43815205,3191.3,3191.2,0.15668]
[1765461723233,1.43815205,3191.3,3191.2,0.85278]
[1765461723434,1.43815205,3191.3,3191.2,0.15668]
[1765461725632,1.43815205,3191.3,3191.2,1.53838]
[1765461726032,1.43815205,3191.3,3191.2,0.85278]
[1765461726226,1.43815205,3191.3,3191.2,0.15668]
[1765461728632,1.43815205,3191.3,3191.2,0.85278]
[1765461728832,1.43815205,3191.3,3191.2,0.15668]
[1765461729434,1.4381,3190.3,3190.2,0.00695664]
[1765461729634,6.04994104,3190.3,3190.2,0.00695664]
[1765461735041,6.2425589,3190.3,3190.2,0.00695664]
[1765461735632,6.2425589,3190.3,3190.2,0.70305664]
[1765461736343,6.2425589,3190.3,3190.2,0.00695664]
[1765461736839,6.2425589,3190.3,3190.2,1.50265664]
[1765461737040,6.2425589,3190.3,3190.2,1.65938664]
[1765461737541,6.2425589,3190.3,3190.2,0.16368664]
[1765461739242,6.2425589,3190.3,3190.2,0.91308664]
[1765461740137,6.2425589,3190.3,3190.2,0.16368664]
[1765461742743,6.2425589,3190.3,3190.2,0.91308664]
[1765461743246,6.2425589,3190.3,3190.2,0.16368664]
[1765461744149,6.2425589,3190.3,3189.5,4.33895958]
[1765461744150,6.4011178,3190.3,3189.5,4.33895958]
[1765461744450,4.8044589,3189.6,3189.5,4.33895958]
[1765461744649,4.8044589,3189.6,3189.5,0.4069]
[1765461745245,4.80829452,3189.6,3189.5,0.40863542]
[1765461745750,4.80829452,3189.6,3189.5,0.56539542]
[1765461747349,4.80829452,3189.6,3189.5,1.31479542]
[1765461747853,4.80829452,3189.6,3189.5,0.56539542]
[1765461748650,4.80829452,3189.6,3189.5,1.31479542]
[1765461749153,4.80829452,3189.6,3189.5,0.56539542]
[1765461751649,3.21163562,3189.6,3189.5,2.06109542]
[1765461752542,3.21163562,3189.6,3189.5,1.31479542]
[1765461753148,3.21163562,3189.6,3189.5,0.56539542]
[1765461753547,3.21163562,3189.6,3189.5,1.31479542]
[1765461754350,3.21163562,3189.6,3189.5,0.56539542]
[1765461756154,3.21163562,3189.6,3189.5,3.37142061]
[1765461756951,3.21163562,3189.6,3189.5,0.56539542]
[1765461757150,3.21163562,3189.6,3189.5,3.37142061]
[1765461757351,15.58063562,3189.6,3189.5,3.37142061]
[1765461759352,15.58063562,3189.6,3189.5,0.56539542]
[1765461760550,3.21163562,3189.6,3189.5,2.06109542]
[1765461760755,15.58063562,3189.6,3189.5,1.31479542]
[1765461761154,3.21163562,3189.6,3189.5,2.06109542]
[1765461762655,3.21163562,3189.6,3189.5,0.56539542]
[1765461763758,3.21163562,3189.6,3189.5,1.27569542]
[1765461764254,3.21163562,3189.6,3189.5,1.99779542]
[1765461768064,3.21163562,3189.6,3189.5,0.56539542]
[1765461768660,3.21163562,3189.6,3189.5,1.27569542]
[1765461768962,3.21163562,3189.6,3189.5,1.99779542]
[1765461771262,3.21163562,3189.6,3189.5,5.929855]
[1765461773061,1.5966589,3189.8,3189.7,1.4324]
[1765461773263,3.2078,3189.8,3189.7,1.58915]
[1765461774068,3.21041391,3189.8,3189.7,1.58915]
[1765461774963,3.21041391,3189.8,3189.7,5.5344621]
[1765461775767,3.21041391,3189.8,3189.7,1.58915]
[1765461776167,0.00261391,3189.8,3189.7,1.58915]
[1765461776470,2.0,3190.0,3189.9,1.58914]
[1765461777462,2.0030278,3190.0,3189.9,1.58914]
[1765461778167,2.0030278,3190.0,3189.9,4.10129027]
[1765461778666,2.0030278,3190.0,3189.9,0.15674]
[1765461779567,2.0030278,3190.0,3189.9,0.86704]
[1765461779769,2.0030278,3190.0,3189.9,4.81159027]
[1765461780269,2.0030278,3190.0,3189.9,5.53369027]
[1765461780469,2.0030278,3190.0,3189.9,4.81159027]
[1765461780768,3.64101476,3190.0,3189.9,4.10129027]
[1765461780970,17.64600172,3190.0,3189.9,4.10129027]
[1765461781163,17.64600172,3190.0,3189.8,2.81719306]
[1765461782170,17.64600172,3190.0,3189.7,2.81719306]
[1765461782470,4.84578696,3189.8,3189.7,2.81719306]
[1765461783073,4.84578696,3189.8,3189.7,2.97394306]
[1765461783371,17.21278696,3189.8,3189.7,2.97394306]
[1765461790076,17.21278696,3189.8,3189.7,0.15675]
[1765461798582,17.21278696,3189.8,3189.6,2.81719306]
[1765461803186,12.367,3189.7,3189.6,3.66399306]
[1765461803379,12.367,3189.7,3189.6,2.81719306]
[1765461803984,3.2078,3189.8,3189.7,1.6713]
[1765461804186,17.21278696,3189.8,3189.7,1.6713]
[1765461804388,17.21278696,3189.8,3189.7,2.81719306]
[1765461805783,4.84578696,3189.8,3189.7,1.81719306]
[1765461805983,17.21278696,3189.8,3189.7,1.81719306]
[1765461806182,17.21278696,3189.8,3189.7,0.81719306]
[1765461806591,17.21278696,3189.8,3189.5,2.07993542]
[1765461808690,4.84578696,3189.8,3189.5,0.40863542]
[1765461808890,1.63798696,3189.6,3189.5,0.40863542]
[1765461809995,1.63798696,3189.6,3189.5,1.25543542]
[1765461810197,14.00498696,3189.6,3189.5,2.07993542]
[1765461811789,3.2078,3189.8,3189.7,1.6713]
[1765461811996,15.5748,3189.8,3189.7,1.6713]
[1765461812295,15.5748,3189.8,3189.7,5.61829806]
[1765461813295,2.0030278,3190.0,3189.9,1.6713]
[1765461813499,2.0030278,3190.0,3189.9,5.77503806]
[1765461813998,2.0030278,3190.0,3189.9,1.82804]
[1765461814399,2.0030278,3190.0,3189.9,5.77214729]
[1765461814901,3.64101476,3190.0,3189.9,3.94410729]
[1765461815101,3.64101476,3190.0,3189.9,2.81764643]
[1765461815298,3.64101476,3190.0,3189.5,0.40863542]
[1765461815499,4.84578696,3189.6,3189.5,2.07993542]
[1765461815999,4.84578696,3189.6,3189.5,0.40863542]
[1765461821802,11.17878696,3189.6,3189.5,1.25543542]
[1765461822502,11.17878696,3189.6,3189.5,0.40863542]
[1765461822704,11.17878696,3189.6,3189.5,1.32673542]
[1765461823201,11.17878696,3189.6,3189.5,0.40863542]
[1765461823401,0.6418,3189.5,3189.4,3.35339222]
[1765461823900,0.6418,3189.5,3189.4,4.27149222]
[1765461824203,0.9414,3189.3,3189.2,2.01407109]
[1765461824406,2.57938696,3189.3,3189.2,2.01750782]
[1765461825605,2.57938696,3189.3,3189.2,1.08300782]
[1765461825907,2.57938696,3189.3,3189.2,2.01750782]
[1765461827104,3.21250182,3189.6,3189.5,2.449]
[1765461827407,3.65210182,3189.6,3189.5,2.449]
[1765461827802,3.21250182,3189.6,3189.5,2.449]
[1765461828003,1.91033017,3190.0,3189.9,1.8526]
[1765461828203,0.20877376,3190.0,3189.9,1.8526]
[1765461828904,0.20877376,3190.0,3189.9,5.0604]
[1765461829103,0.20877376,3190.0,3189.9,5.21714]
[1765461830813,1.64268878,3190.3,3190.2,2.00933]
[1765461830814,0.00470182,3190.3,3190.2,2.00933]
[1765461831013,0.00470182,3190.3,3190.2,3.64731696]
[1765461831809,0.00726789,3190.3,3190.2,3.64731696]
[1765461832206,1.63798696,3190.8,3190.7,1.8526]
[1765461832906,3.2078,3191.1,3190.7,2.0093]
[1765461833102,5.1637,3191.1,3191.0,0.9181]
[1765461833311,5.1659351,3191.1,3191.0,0.9181]
[1765461833510,2.5257,3191.0,3190.9,4.66273599]
[1765461834012,2.5257,3191.0,3190.9,4.16273599]
[1765461834409,4.16368696,3191.0,3190.9,1.8526]
[1765461834610,4.16368696,3191.0,3190.9,0.9181]
[1765461835205,4.16368696,3191.0,3190.9,2.00929]
[1765461838322,4.16368696,3191.0,3190.9,1.07479]
[1765461839227,4.16368696,3191.0,3190.9,0.57479]
[1765461839421,4.16368696,3191.0,3190.9,1.50929]
[1765461839622,4.16368696,3191.0,3190.9,0.57479]
[1765461840218,2.20778696,3191.0,3190.9,1.50929]
[1765461840524,0.5698,3191.0,3190.9,1.50929]
[1765461840718,3.2100351,3191.1,3191.0,2.00929]
[1765461841025,0.0022351,3191.1,3191.0,5.41209]
[1765461842524,0.0022351,3191.1,3191.0,3.36449]
[1765461844123,0.0022351,3191.1,3191.0,2.86449]
[1765461844428,0.0022351,3191.1,3191.0,4.61630123]
[1765461844831,0.0022351,3191.1,3191.0,14.5506579]
[1765461845314,0.0022351,3191.1,3191.0,10.61630123]
[1765461848522,1.59512123,3193.7,3193.2,0.15658]
[1765461848721,1.59512123,3193.4,3193.0,3.2078]
[1765461848926,3.2078,3193.4,3192.8,0.1566]
[1765461849124,3.2078,3193.4,3192.9,0.1566]
[1765461849324,0.00388934,3193.4,3192.9,2.23471594]
[1765461849519,0.00388934,3193.4,3193.0,5.59910594]
[1765461849722,0.00388934,3193.4,3193.0,4.94251594]
[1765461850026,0.00388934,3193.4,3193.0,3.2078]
[1765461850225,0.00388934,3193.4,3193.0,3.2018]
[1765461850529,0.00388934,3193.4,3193.0,3.20380369]
[1765461851027,0.00388934,3193.4,3193.0,3.19580369]
[1765461851427,0.00388934,3193.4,3193.0,3.18980369]
[1765461851628,0.00388934,3193.4,3193.3,0.14858]
[1765461851928,0.00388934,3193.4,3193.3,0.14058]
[1765461852127,0.00388934,3193.4,3193.0,3.18980369]
[1765461852722,0.00388934,3193.4,3193.0,2.84638369]
[1765461853724,0.00388934,3193.4,3193.3,0.15658]
[1765461854131,0.00388934,3193.4,3193.0,2.84638369]
[1765461854533,0.00388934,3193.4,3193.0,2.50296369]
[1765461855630,0.00388934,3193.4,3193.3,0.15658]
[1765461855832,0.00388934,3193.4,3193.0,2.15974369]
[1765461856227,0.00388934,3193.4,3193.3,0.15658]
[1765461856624,0.00388934,3193.4,3193.3,0.15158]
[1765461856831,0.00388934,3193.4,3193.3,0.14558]
[1765461857132,0.00388934,3193.4,3193.3,0.13758]
[1765461857330,0.00388934,3193.4,3193.3,0.12958]
[1765461857529,0.00388934,3193.4,3193.3,0.12158]
[1765461857926,0.00388934,3193.4,3193.3,0.11358]
[1765461858233,0.00388934,3193.4,3193.3,0.10558]
[1765461858433,0.00388934,3193.4,3193.3,0.09758]
[1765461858633,0.00388934,3193.4,3193.3,0.09158]
[1765461858840,0.00388934,3193.4,3193.3,0.08358]
[1765461859234,0.00388934,3193.4,3193.3,0.07658]
[1765461859431,0.00388934,3193.4,3193.3,0.06958]
[1765461859735,0.00388934,3193.4,3193.3,0.06558]
[1765461859928,0.00388934,3193.4,3193.2,3.82111923]
[1765461860132,0.00388934,3193.4,3193.2,1.59512123]
[1765461860626,0.00388934,3193.4,3193.3,0.15658]
[1765461861026,0.00388934,3193.4,3193.3,0.15058]
[1765461861233,0.00388934,3193.4,3193.3,0.14458]
[1765461861431,0.00388934,3193.4,3193.3,0.13658]
[1765461861733,0.00388934,3193.4,3193.3,0.12858]
[1765461861933,0.00388934,3193.4,3193.3,0.12058]
[1765461862335,1.59512123,3193.2,3193.0,2.15374369]
[1765461862533,1.59512123,3193.2,3193.0,1.65374369]
[1765461862734,1.59512123,3193.2,3193.0,1.15374369]
[1765461862928,1.59512123,3193.2,3193.0,0.65374369]
[1765461863333,3.21168934,3193.4,3193.3,0.15658]
[1765461863641,3.21168934,3193.4,3193.0,0.65374369]
[1765461864141,3.21168934,3193.4,3193.0,0.15374369]
[1765461864343,3.21168934,3193.4,3193.0,0.00400369]
[1765461864543,3.21168934,3193.4,3193.3,0.15658]
[1765461864937,3.21168934,3193.4,3192.8,0.00470182]
[1765461865132,1.59512123,3193.1,3192.9,0.1566]
[1765461865541,1.59512123,3193.1,3192.6,3.2078]
[1765461865843,1.59512123,3192.7,3192.6,3.21127614]
[1765461866458,1.59512123,3192.7,3192.6,3.36788614]
[1765461866752,1.59512123,3192.7,3192.6,0.16008614]
[1765461867152,1.59512123,3192.7,3192.3,0.00470182]
[1765461867651,1.59512123,3192.7,3192.6,0.15661]
[1765461868056,1.59512123,3192.7,3192.3,0.00470182]
[1765461868250,1.59512123,3192.7,3192.3,0.00746615]
[1765461868452,1.59512123,3192.7,3192.6,0.15661]
[1765461868757,1.59512123,3192.7,3192.3,0.00746615]
[1765461868953,3.2078,3192.6,3192.3,0.00746615]
[1765461869143,3.2078,3192.6,3192.5,0.15662]
[1765461870552,3.2078,3192.6,3192.3,2.23346415]
[1765461870956,3.2078,3192.6,3192.5,0.15662]
[1765461871351,3.2078,3192.6,3192.3,2.23346415]
[1765461872252,3.2078,3192.6,3192.5,0.15662]
[1765461873153,1.59512123,3192.4,3192.3,2.39009415]
[1765461874056,1.59512123,3192.4,3192.3,0.16409615]
[1765461874752,1.59512123,3192.4,3192.1,5.433798]
[1765461875452,1.59512123,3192.4,3192.3,0.15663]
[1765461876656,1.59512123,3192.4,3192.1,5.433798]
[1765461876852,1.59512123,3192.4,3192.1,3.2078]
[1765461877250,1.59512123,3192.4,3192.1,5.433798]
[1765461877651,1.59512123,3192.4,3192.3,0.15663]
[1765461878057,1.59512123,3192.4,3192.1,5.433798]
[1765461878259,1.59512123,3192.4,3192.2,1.725998]
[1765461878663,1.59512123,3192.4,3192.3,0.15663]
[1765461878963,1.59512123,3192.4,3192.2,1.725998]
[1765461879162,1.59512123,3192.4,3192.1,3.2078]
[1765461879554,1.59512123,3192.4,3192.3,0.15663]
[1765461879963,1.59512123,3192.4,3192.1,3.2078]
[1765461880562,1.59512123,3192.4,3192.3,0.15663]
[1765461880862,1.59512123,3192.4,3192.1,3.2078]
[1765461881656,1.59512123,3192.4,3192.3,0.15663]
[1765461882355,1.59512123,3192.1,3192.0,0.00470182]
[1765461882762,1.59512123,3192.1,3192.0,0.16134182]
[1765461883757,1.59512123,3192.1,3191.7,3.2078]
[1765461883952,1.59512123,3191.8,3191.7,3.36445]
[1765461887166,4.80292123,3192.1,3191.8,0.15665]
[1765461887766,3.2078,3192.1,3191.8,0.15665]
[1765461887967,1.59512123,3192.0,3191.8,0.15665]
[1765461888264,1.59512123,3192.0,3191.7,6.00357261]
[1765461888462,1.59512123,3192.0,3191.8,0.15665]
[1765461888662,1.59512123,3192.0,3191.8,2.24209414]
[1765461888862,1.59512123,3192.0,3191.8,1.24209414]
[1765461889662,1.59512123,3192.0,3191.8,1.39874414]
[1765461889862,1.59512123,3192.0,3191.8,0.15665]
[1765461890468,1.59512123,3192.0,3191.4,0.00470109]
[1765461890665,1.59512123,3191.5,3191.4,2.8004737]
[1765461891060,1.59512123,3191.5,3191.4,2.9571437]
[1765461892370,1.59512123,3191.5,3191.4,0.16137109]
[1765461900572,3.2078,3191.7,3191.2,3.91408165]
[1765461900881,3.2078,3191.7,3191.6,0.15666]
[1765461901275,4.80292123,3191.7,3191.6,0.15666]
[1765461901475,4.80292123,3191.7,3191.6,2.80860932]
[1765461901675,4.80292123,3191.7,3191.6,1.96526932]
[1765461901978,8.3318,3191.7,3191.6,0.15666]
[1765461902774,4.84400978,3191.7,3191.6,0.15666]
[1765461903273,4.84400978,3191.7,3191.3,3.91408165]
[1765461903478,1.63620978,3191.4,3191.3,3.91408165]
[1765461903681,1.63620978,3191.4,3191.1,3.91408165]
[1765461903879,1.63620978,3191.2,3191.1,4.07076165]
[1765461905380,1.63620978,3191.2,3191.1,0.15668]
[1765461916289,1.63620978,3191.2,3190.8,8.79934522]
[1765461916490,1.63620978,3191.0,3190.8,8.79934522]
[1765461916690,1.63985142,3191.0,3190.8,3.2078]
[1765461917190,0.21048609,3191.0,3190.8,3.2078]
[1765461917485,0.21048609,3191.0,3190.9,0.15669]
[1765461918082,3.2078,3191.5,3191.4,0.15667]
[1765461918391,0.00470182,3191.8,3191.7,0.15665]
[1765461918691,0.00822295,3191.8,3191.7,3.59993504]
[1765461919490,0.00822295,3191.8,3191.7,3.75658504]
[1765461921992,0.00822295,3191.8,3191.7,3.25658504]
[1765461922195,0.00822295,3191.8,3191.0,5.59154522]
[1765461922389,1.63620978,3191.2,3191.1,0.15668]
[1765461925995,1.63620978,3191.4,3191.3,0.15667]
[1765461926492,1.63620978,3191.5,3191.0,8.79934522]
[1765461927291,1.63620978,3191.5,3191.1,5.59154522]
[1765461927490,1.63620978,3191.5,3191.4,0.15667]
[1765461928694,0.00822295,3191.8,3191.7,0.15665]
[1765461929093,0.00822295,3191.8,3191.4,4.84400978]
[1765461929493,0.00822295,3191.8,3191.7,0.15665]
[1765461931886,0.00822295,3191.8,3191.5,5.59154522]
[1765461932097,0.00822295,3191.8,3191.4,10.435555]
[1765461932398,0.00822295,3191.8,3191.4,8.79934522]